bitfinex/quotes_SOLUSD_20250626
["timestamp","ask_amount","ask_price","bid_price","bid_amount"]
[1750976585340,0.04,139.72,139.69,13.87587145]
[1750976585634,0.04,139.72,139.71,6.02877145]
[1750976586547,0.04,139.75,139.71,6.02877145]
[1750976586757,0.04,139.75,139.69,14.3271]
[1750976586960,0.04,139.75,139.73,6.02877145]
[1750976587628,0.04,139.75,139.74,6.02877145]
[1750976588064,0.04,139.76,139.74,13.94677145]
[1750976588368,0.04,139.76,139.75,6.02877145]
[1750976589264,0.04,139.8,139.75,6.02877145]
[1750976589556,0.04,139.8,139.76,0.14216157]
[1750976589740,0.04,139.8,139.79,6.02877145]
[1750976591752,0.04,139.8,139.76,6.02877145]
[1750976591753,0.04,139.8,139.75,6.48]
[1750976591948,0.04,139.8,139.79,6.02877145]
[1750976592666,0.04,139.8,139.75,6.48]
[1750976592963,0.04,139.8,139.79,6.02877145]
[1750976593132,0.04,139.8,139.75,95.88]
[1750976593453,0.04,139.8,139.79,6.02877145]
[1750976593968,0.04,139.8,139.78,6.02877145]
[1750976595447,0.04,139.8,139.75,95.88]
[1750976595642,0.04,139.8,139.77,6.02877145]
[1750976596156,0.04,139.8,139.75,6.48]
[1750976596573,0.04,139.8,139.77,6.02877145]
[1750976597264,0.04,139.8,139.75,6.48]
[1750976597454,0.04,139.8,139.76,6.02877145]
[1750976597654,0.04,139.8,139.75,6.48]
[1750976597854,0.04,139.8,139.77,6.02877145]
[1750976598269,0.04,139.8,139.78,6.02877145]
[1750976598883,0.04,139.8,139.79,6.02877145]
[1750976599257,0.04,139.8,139.78,6.02877145]
[1750976599649,0.04,139.8,139.76,6.02877145]
[1750976599854,0.04,139.8,139.74,13.94677145]
[1750976600047,0.04,139.8,139.76,6.02877145]
[1750976600548,0.04,139.8,139.78,6.02877145]
[1750976600950,0.04,139.8,139.74,7.918]
[1750976601153,0.04,139.8,139.78,6.02877145]
[1750976602662,0.04,139.8,139.77,6.02877145]
[1750976603156,0.04,139.8,139.75,6.02877145]
[1750976603363,0.04,139.8,139.78,6.02877145]
[1750976603556,0.04,139.8,139.79,6.02877145]
[1750976603978,0.04,139.8,139.78,6.02877145]
[1750976604285,0.04,139.8,139.74,7.918]
[1750976604286,0.04,139.8,139.77,6.02877145]
[1750976604989,0.04,139.8,139.74,13.94677145]
[1750976605276,0.04,139.8,139.76,6.02877145]
[1750976606074,0.04,139.8,139.75,6.02877145]
[1750976608877,7.19307582,139.8,139.75,6.02877145]
[1750976609686,7.19307582,139.8,139.74,7.918]
[1750976609863,7.19307582,139.8,139.75,6.02877145]
[1750976611267,7.19307582,139.8,139.74,7.918]
[1750976611478,7.19307582,139.8,139.74,7.67137145]
[1750976611672,7.19307582,139.8,139.75,6.02877145]
[1750976612163,7.19307582,139.8,139.76,6.02877145]
[1750976612787,7.19307582,139.8,139.75,6.02877145]
[1750976613786,0.04,139.8,139.76,6.02877145]
[1750976614578,0.04,139.8,139.77,6.02877145]
[1750976615262,0.04,139.8,139.74,7.67137145]
[1750976615479,19.07613357,139.78,139.7,1.5739]
[1750976615674,7.15461114,139.77,139.7,1.5739]
[1750976615875,7.15461114,139.77,139.7,7.60267145]
[1750976616062,7.15461114,139.77,139.7,1.5739]
[1750976616063,25.041139,139.77,139.7,1.5739]
[1750976616577,25.041139,139.77,139.7,7.60267145]
[1750976617898,19.07613357,139.76,139.67,6.3928]
[1750976618084,19.07613357,139.76,139.67,12.42157145]
[1750976618771,19.07613357,139.74,139.66,7.60467145]
[1750976619681,25.04830744,139.73,139.66,1.5759]
[1750976619866,7.15665927,139.73,139.67,6.02877145]
[1750976620074,7.15665927,139.73,139.66,7.60467145]
[1750976622988,25.04830744,139.73,139.66,7.60467145]
[1750976623187,25.04830744,139.73,139.66,6.02877145]
[1750976624087,19.07613357,139.72,139.64,26.02646553]
[1750976624476,19.07613357,139.72,139.65,6.02877145]
[1750976625697,7.15768377,139.71,139.65,6.02877145]
[1750976626691,7.15768377,139.71,139.66,6.02877145]
[1750976626891,7.15719263,139.72,139.68,6.02877145]
[1750976627598,7.15665927,139.73,139.68,6.02877145]
[1750976629291,7.15665927,139.73,139.69,6.02877145]
[1750976629683,7.15665927,139.73,139.64,109.39769408]
[1750976629881,7.15665927,139.73,139.68,6.02877145]
[1750976630081,7.15665927,139.73,139.69,6.02877145]
[1750976631900,7.155867,139.75,139.7,6.02877145]
[1750976632701,7.15526333,139.76,139.71,6.02877145]
[1750976632891,154.4521,139.79,139.73,6.02877145]
[1750976633087,7.15358752,139.79,139.75,6.02877145]
[1750976633289,7.19326602,139.8,139.77,6.02877145]
[1750976633483,7.19326602,139.8,139.76,6.02877145]
[1750976633484,0.04,139.8,139.76,6.02877145]
[1750976633908,7.1932833,139.8,139.76,6.02877145]
[1750976634896,7.1932833,139.8,139.75,6.02877145]
[1750976635595,33.1932833,139.8,139.75,6.02877145]
[1750976636389,33.1932833,139.8,139.76,6.02877145]
[1750976636595,26.04,139.8,139.77,6.02877145]
[1750976636803,33.19318894,139.8,139.75,6.02877145]
[1750976637402,33.19318894,139.8,139.76,6.02877145]
[1750976639810,33.19318894,139.8,139.72,0.42648471]
[1750976639997,33.19318894,139.8,139.76,6.02877145]
[1750976640811,33.19318894,139.8,139.72,89.82648471]
[1750976640812,33.19318894,139.8,139.75,6.02877145]
[1750976641991,0.04,139.8,139.79,6.02877145]
[1750976642724,0.04,139.8,139.78,6.02877145]
[1750976646491,0.04,139.8,139.75,1.5988]
[1750976646492,0.04,139.8,139.79,6.02877145]
[1750976651729,0.04,139.8,139.79,30.70083]
[1750976652022,0.04,139.8,139.79,39.41781752]
[1750976652390,0.04,139.8,139.79,26.66830502]
[1750976652597,0.04,139.8,139.79,8.01865616]
[1750976653519,0.04,139.8,139.79,1.5634]
[1750976653694,0.04,139.8,139.79,7.59217145]
[1750976654902,0.04,139.8,139.79,6.02877145]
[1750976657330,0.04,139.8,139.79,6.45525616]
[1750976657907,0.04,139.8,139.79,103.72420243]
[1750976658112,0.04,139.8,139.79,115.22026377]
[1750976658415,0.04,139.8,139.79,122.37385129]
[1750976658809,0.04,139.82,139.8,19.07613357]
[1750976659009,0.04,139.86,139.82,18.64964886]
[1750976659211,0.04,139.86,139.85,6.02877145]
[1750976660819,0.04,139.86,139.85,14.44529459]
[1750976661020,0.04,139.9,139.87,0.28432314]
[1750976661219,0.04,139.9,139.89,6.02877145]
[1750976661832,25.76604325,139.94,139.89,6.02877145]
[1750976662513,7.14604325,139.94,139.89,6.02877145]
[1750976663331,7.14489854,139.96,139.89,6.02877145]
[1750976663532,7.14489854,139.96,139.9,6.02877145]
[1750976663923,26.0,139.95,139.9,6.02877145]
[1750976664127,26.0,139.95,139.91,6.02877145]
[1750976664319,26.0,139.95,139.92,6.02877145]
[1750976665111,8.73410892,139.97,139.93,6.02877145]
[1750976665914,7.14409361,139.98,139.93,6.02877145]
[1750976666310,7.14409361,139.98,139.94,6.02877145]
[1750976667142,8.0593,140.0,139.95,6.02877145]
[1750976667340,1.5393,140.0,139.96,6.02877145]
[1750976667745,1.5393,140.0,139.95,6.02877145]
[1750976667941,3.56596625,140.04,139.98,6.02877145]
[1750976667942,0.04,140.04,139.98,6.02877145]
[1750976668128,0.04,140.04,139.99,6.02877145]
[1750976668329,0.04,140.03,139.99,6.02877145]
[1750976668646,0.04,140.03,140.0,6.02877145]
[1750976669221,0.04,140.03,140.02,6.02877145]
[1750976670218,0.04,140.03,139.99,6.5]
[1750976670432,0.04,140.03,139.99,15.51115645]
[1750976670834,0.04,140.03,139.99,9.01115645]
[1750976672422,0.04,140.03,139.97,1.5344]
[1750976672423,0.04,140.03,140.0,9.01115645]
[1750976673849,0.04,140.03,140.01,9.01115645]
[1750976674144,0.04,140.03,140.02,9.01115645]
[1750976674349,0.04,140.03,140.0,0.28432314]
[1750976674647,0.04,140.03,140.02,9.01115645]
[1750976674834,0.04,140.03,140.02,9.29547959]
[1750976675941,0.04,140.03,140.02,9.01115645]
[1750976677233,0.04,140.03,140.01,15.51115645]
[1750976677444,0.04,140.03,140.01,6.5]
[1750976677754,0.04,140.03,140.01,15.51115645]
[1750976678452,0.04,140.03,140.02,9.01115645]
[1750976679027,0.04,140.03,140.02,10.00966327]
[1750976680144,0.04,140.03,140.02,28.8014737]
[1750976680549,0.04,140.03,140.02,35.94331058]
[1750976680853,0.04,140.03,140.02,37.48061058]
[1750976681248,0.04,140.03,140.02,30.3387737]
[1750976681435,0.04,140.03,140.02,37.48061058]
[1750976681754,0.04,140.03,140.02,67.18061058]
[1750976682334,0.04,140.03,140.02,60.0387737]
[1750976682750,0.04,140.03,140.02,41.24696327]
[1750976683054,0.04,140.03,140.02,60.0387737]
[1750976683849,0.04,140.04,140.03,25.19743357]
[1750976684050,0.04,140.09,140.03,24.91311043]
[1750976684354,0.04,140.09,140.07,9.01115645]
[1750976686154,0.04,140.09,140.08,9.01115645]
[1750976688653,0.04,140.09,140.05,9.01115645]
[1750976689844,0.04,140.09,140.04,9.01115645]
[1750976690027,0.04,140.09,140.03,9.01115645]
[1750976692136,0.04,140.09,140.01,6.84432314]
[1750976692463,0.04,140.09,140.04,9.01115645]
[1750976694256,0.04,140.09,140.05,9.01115645]
[1750976694455,0.04,140.09,140.01,13.98661563]
[1750976694456,0.04,140.09,140.07,9.01115645]
[1750976695552,0.04,140.09,140.08,9.01115645]
[1750976696343,0.04,140.09,140.05,0.99835384]
[1750976696742,0.04,140.09,140.05,8.13858968]
[1750976697460,0.04,140.09,140.05,0.99835384]
[1750976697636,0.04,140.09,140.07,9.01115645]
[1750976698359,0.04,140.09,140.06,9.01115645]
[1750976699764,0.04,140.09,140.04,1.5943]
[1750976699963,0.04,140.09,140.06,9.01115645]
[1750976700262,0.04,140.09,140.07,9.01115645]
[1750976700444,0.04,140.09,140.06,9.01115645]
[1750976701157,0.04,140.09,140.07,9.01115645]
[1750976702460,0.04,140.09,140.06,9.01115645]
[1750976704367,0.04,140.09,140.06,6.00276557]
[1750976706068,0.04,140.09,140.07,6.00276557]
[1750976707076,0.04,140.09,140.03,0.28432314]
[1750976707361,0.04,140.09,140.07,6.00276557]
[1750976708666,0.04,140.09,140.08,6.00276557]
[1750976712865,0.04,140.09,140.07,6.56]
[1750976713193,0.04,140.09,140.03,6.00276557]
[1750976713367,7.17826825,140.09,140.03,6.00276557]
[1750976713758,1.589,140.07,139.99,1.5568]
[1750976713973,1.589,140.07,140.01,6.00276557]
[1750976714282,0.04,140.09,140.05,6.00276557]
[1750976715085,0.04,140.09,140.07,6.00276557]
[1750976715947,0.04,140.09,140.08,6.00276557]
[1750976716347,0.04,140.09,140.08,9.000466]
[1750976719169,0.04,140.09,140.06,2.37887972]
[1750976719361,0.04,140.09,140.08,9.000466]
[1750976721280,0.04,140.12,140.1,18.64964886]
[1750976721484,0.04,140.15,140.13,0.28432314]
[1750976721663,0.04,140.15,140.14,9.28478914]
[1750976722394,0.04,140.15,140.13,26.71362306]
[1750976722869,0.04,140.15,140.13,26.0]
[1750976723764,0.04,140.15,140.14,9.000466]
[1750976723992,0.04,140.15,140.14,9.99836128]
[1750976724169,0.04,140.15,140.14,28.79017171]
[1750976725793,0.04,140.15,140.14,9.99836128]
[1750976725992,0.04,140.15,140.14,26.0]
[1750976726179,0.04,140.15,140.14,35.000466]
[1750976726670,0.04,140.15,140.13,9.000466]
[1750976727083,0.04,140.15,140.14,9.000466]
[1750976728007,0.04,140.15,140.13,9.000466]
[1750976728172,0.04,140.15,140.12,9.000466]
[1750976728871,0.04,140.15,140.11,35.000466]
[1750976729070,0.04,140.15,140.11,9.000466]
[1750976729323,0.04,140.15,140.1,9.000466]
[1750976731734,0.18216157,140.15,140.08,35.000466]
[1750976732033,0.18216157,140.15,140.08,9.000466]
[1750976732400,0.46648471,140.15,140.08,9.000466]
[1750976733092,7.13572142,140.14,140.08,9.000466]
[1750976735107,7.13572142,140.14,140.06,32.1314]
[1750976735304,7.13572142,140.14,140.07,9.000466]
[1750976735506,7.13572142,140.14,140.06,35.000466]
[1750976736430,7.13572142,140.14,140.07,9.000466]
[1750976737931,6.83318471,140.13,140.06,35.000466]
[1750976739325,7.13673993,140.12,140.06,35.000466]
[1750976740729,13.54314095,140.13,140.08,9.000466]
[1750976741411,13.54314095,140.13,140.07,9.000466]
[1750976741613,13.54314095,140.13,140.06,35.000466]
[1750976742522,13.54314095,140.13,140.07,9.000466]
[1750976744535,13.54314095,140.13,140.06,35.000466]
[1750976745731,13.54314095,140.13,140.06,26.0]
[1750976746827,13.54314095,140.13,140.07,9.000466]
[1750976747033,13.54314095,140.13,140.06,26.0]
[1750976747533,13.54314095,140.13,140.08,9.000466]
[1750976748226,13.54314095,140.13,140.08,6.00129952]
[1750976748834,13.54314095,140.13,140.07,6.00129952]
[1750976749514,13.54314095,140.13,140.06,32.00129952]
[1750976750313,13.54314095,140.13,140.06,35.00376287]
[1750976751928,13.54314095,140.13,140.07,9.00376287]
[1750976752136,13.54314095,140.13,140.08,9.00376287]
[1750976752137,6.4067,140.13,140.08,9.00376287]
[1750976753713,7.1360134,140.14,140.08,9.00376287]
[1750976755532,7.60169698,140.15,140.08,9.00376287]
[1750976756322,7.60169698,140.15,140.06,26.0]
[1750976758452,7.60169698,140.15,140.08,9.00376287]
[1750976759717,7.60169698,140.15,140.06,26.0]
[1750976759932,7.60169698,140.15,140.07,9.00376287]
[1750976760844,7.60169698,140.15,140.06,26.0]
[1750976768047,0.42648471,140.13,140.06,26.0]
[1750976768352,1.5496,140.12,140.06,26.0]
[1750976769260,8.68681552,140.12,140.06,26.0]
[1750976770579,1.5496,140.12,140.06,26.0]
[1750976776362,1.5496,140.12,140.06,33.13972385]
[1750976776859,8.78025693,140.15,140.06,33.13972385]
[1750976777033,8.78025693,140.15,140.06,33.85370357]
[1750976778757,8.78025693,140.15,140.06,123.25370357]
[1750976779471,8.78025693,140.15,140.1,26.0]
[1750976779472,0.04,140.15,140.1,26.0]
[1750976779640,0.04,140.15,140.1,115.4]
[1750976779841,0.04,140.15,140.11,0.71372493]
[1750976781264,0.04,140.15,140.11,0.99804807]
[1750976781436,0.04,140.15,140.14,26.0]
[1750976787157,0.04,140.15,140.12,115.4]
[1750976787468,0.04,140.15,140.12,26.0]
[1750976790055,0.04,140.15,140.14,26.0]
[1750976790571,0.04,140.15,140.12,115.4]
[1750976794379,0.04,140.15,140.12,116.11367399]
[1750976794672,0.04,140.15,140.12,123.25039689]
[1750976795080,0.04,140.15,140.12,116.11367399]
[1750976795453,0.04,140.15,140.14,44.64964886]
[1750976795657,0.04,140.19,140.18,26.0]
[1750976796655,0.04,140.19,140.18,134.47613357]
[1750976797250,0.04,140.19,140.18,140.46520331]
[1750976798278,0.04,140.19,140.18,146.15341705]
[1750976798471,0.04,140.19,140.18,140.46520331]
[1750976799080,0.42648471,140.28,140.18,147.5988779]
[1750976799278,0.42648471,140.28,140.22,5.98906974]
[1750976799455,0.42648471,140.28,140.18,141.60980816]
[1750976799650,0.42648471,140.28,140.22,5.98906974]
[1750976801077,0.04,140.3,140.25,5.98906974]
[1750976801280,0.04,140.3,140.26,5.98906974]
[1750976801866,0.04,140.3,140.28,5.98906974]
[1750976802381,0.04,140.3,140.26,31.98906974]
[1750976802570,0.04,140.3,140.25,5.98906974]
[1750976802880,7.16782942,140.3,140.25,5.98906974]
[1750976803063,0.04,140.3,140.25,5.98906974]
[1750976803656,0.04,140.3,140.24,5.98906974]
[1750976803871,0.46648471,140.3,140.23,32.54]
[1750976804082,0.46648471,140.3,140.23,38.52906974]
[1750976804263,0.46648471,140.3,140.24,5.98906974]
[1750976804665,0.46648471,140.3,140.23,38.52906974]
[1750976805063,7.1280918,140.29,140.24,5.98906974]
[1750976805692,7.16780062,140.3,140.25,5.98906974]
[1750976806183,0.04,140.3,140.26,5.98906974]
[1750976806386,7.16779973,140.3,140.23,32.54]
[1750976806565,7.16779973,140.3,140.23,38.52906974]
[1750976807073,0.04,140.3,140.23,38.52906974]
[1750976807274,0.46648471,140.3,140.23,38.52906974]
[1750976807671,0.46648471,140.3,140.23,6.54]
[1750976808106,0.46648471,140.3,140.23,12.52906974]
[1750976808671,0.46648471,140.3,140.23,6.54]
[1750976808876,6.7444,140.29,140.23,6.54]
[1750976809079,7.12859994,140.28,140.22,31.98906974]
[1750976811604,7.12859994,140.28,140.2,5.98906974]
[1750976812807,0.42648471,140.27,140.19,121.38906974]
[1750976812994,19.07613357,140.27,140.18,12.52906974]
[1750976813988,19.07613357,140.27,140.18,6.54]
[1750976814170,19.07613357,140.27,140.18,12.52906974]
[1750976814370,0.42648471,140.25,140.18,12.52906974]
[1750976815181,0.9287,140.24,140.18,6.54]
[1750976815380,0.9287,140.24,140.17,6.00906974]
[1750976815585,0.9287,140.24,140.17,0.02]
[1750976815903,0.9287,140.24,140.17,6.00906974]
[1750976816480,7.13165026,140.22,140.17,0.02]
[1750976816680,19.07613357,140.21,140.17,0.02]
[1750976816877,6.24218471,140.18,140.17,0.02]
[1750976817198,24.89183357,140.18,140.17,0.02]
[1750976818391,32.02551883,140.18,140.17,0.02]
[1750976825909,49.85973198,140.18,140.11,0.02]
[1750976826880,18.64964886,140.17,140.11,0.02]
[1750976827095,0.42648471,140.16,140.11,0.02]
[1750976828691,19.07613357,140.14,140.11,0.02]
[1750976830887,7.13623064,140.13,140.11,0.02]
[1750976831095,19.07613357,140.12,140.11,0.02]
[1750976831986,19.07613357,140.12,140.06,0.02]
[1750976831987,24.89183357,140.12,140.06,0.02]
[1750976832188,19.07613357,140.1,140.06,0.02]
[1750976832484,6.62,140.11,140.06,0.02]
[1750976832485,19.07613357,140.08,140.06,0.02]
[1750976832805,0.28432314,140.08,140.06,0.02]
[1750976833004,0.42648471,140.09,140.06,0.02]
[1750976833189,19.07613357,140.09,140.06,0.02]
[1750976834102,13.75738722,140.11,140.06,6.00906974]
[1750976835002,6.62,140.11,140.07,5.98906974]
[1750976835491,7.2789015,140.12,140.06,6.00906974]
[1750976837504,0.14216157,140.1,140.06,0.02]
[1750976839411,7.13826825,140.09,140.06,0.02]
[1750976842215,7.13798677,140.1,140.06,0.02]
[1750976843494,7.56373401,140.11,140.06,0.02]
[1750976844893,7.1372493,140.11,140.06,6.00906974]
[1750976845208,7.1372493,140.11,140.07,5.98906974]
[1750976845407,7.1372493,140.11,140.06,12.58836974]
[1750976845907,7.56271535,140.13,140.06,12.58836974]
[1750976848318,7.56271535,140.13,140.07,5.98906974]
[1750976849123,7.13623064,140.13,140.07,5.98906974]
[1750976849501,7.13623064,140.13,140.08,1.6408]
[1750976849801,7.13623064,140.13,140.08,7.62986974]
[1750976850526,0.28432314,140.13,140.08,7.62986974]
[1750976852698,7.42099227,140.13,140.08,1.6408]
[1750976855324,0.28432314,140.11,140.06,6.5993]
[1750976856316,0.28432314,140.11,140.06,12.58836974]
[1750976857626,7.13775874,140.1,140.06,12.58836974]
[1750976860330,0.28432314,140.11,140.06,12.58836974]
[1750976860528,7.13747684,140.11,140.06,12.58836974]
[1750976860733,7.4212611,140.12,140.07,5.98906974]
[1750976861034,7.13693796,140.12,140.07,5.98906974]
[1750976862342,7.13693796,140.12,140.08,5.98906974]
[1750976863009,12.45492212,140.13,140.08,5.98906974]
[1750976863210,12.45447564,140.14,140.08,5.98906974]
[1750976863431,5.31853792,140.15,140.11,5.98906974]
[1750976863635,7.13474103,140.16,140.11,12.56586974]
[1750976864222,7.17439084,140.17,140.12,5.98906974]
[1750976865239,0.04,140.17,140.13,5.98906974]
[1750976865627,0.04,140.17,140.12,5.98906974]
[1750976867742,0.04,140.17,140.13,5.98906974]
[1750976871046,0.32432314,140.17,140.11,12.56586974]
[1750976872231,0.32432314,140.17,140.11,6.5768]
[1750976873024,7.13470319,140.16,140.11,6.5768]
[1750976884353,7.13470319,140.16,140.11,12.56586974]
[1750976884855,7.13470319,140.16,140.12,5.98906974]
[1750976885041,7.13470319,140.16,140.13,5.98906974]
[1750976885434,7.13470319,140.16,140.12,5.98906974]
[1750976889259,7.13470319,140.16,140.11,6.5768]
[1750976889462,7.13470319,140.16,140.11,12.56586974]
[1750976891762,7.13470319,140.16,140.1,1.6373]
[1750976891966,19.07613357,140.15,140.07,7.7825]
[1750976892135,25.32573973,140.15,140.07,7.7825]
[1750976892335,25.32573973,140.15,140.07,13.77156974]
[1750976893665,19.07613357,140.13,140.07,7.7825]
[1750976893849,19.07613357,140.13,140.06,0.02]
[1750976894048,24.39880495,140.13,140.06,0.02]
[1750976895235,19.07613357,140.11,140.06,0.02]
[1750976895668,24.3962464,140.11,140.06,0.02]
[1750976897153,19.07613357,140.09,140.06,0.02]
[1750976899165,7.13877784,140.08,140.06,0.02]
[1750976900046,36.75877784,140.08,140.06,0.02]
[1750976902844,19.07613357,140.07,140.06,0.02]
[1750976903441,19.07613357,140.07,140.05,0.02]
[1750976903644,25.63613357,140.06,140.05,0.02]
[1750976904246,32.77593079,140.06,140.05,0.02]
[1750976908358,13.98412036,140.06,140.05,0.02]
[1750976910698,13.69979722,140.06,140.05,0.02]
[1750976911677,7.42361063,140.07,140.05,0.02]
[1750976912471,7.13928749,140.07,140.05,0.02]
[1750976913590,7.13826825,140.09,140.05,7.66166974]
[1750976914785,7.13826825,140.09,140.06,5.98906974]
[1750976916295,25.92905973,140.11,140.06,5.98906974]
[1750976919386,7.13703604,140.12,140.07,5.98906974]
[1750976919576,7.13703604,140.12,140.08,5.98906974]
[1750976919778,18.933972,140.13,140.07,5.98906974]
[1750976921291,7.13673993,140.12,140.07,5.98906974]
[1750976921776,7.13673993,140.12,140.06,5.98906974]
[1750976922177,7.13673993,140.12,140.07,5.98906974]
[1750976923602,7.13673993,140.12,140.05,1.6726]
[1750976923903,7.13673993,140.12,140.06,5.98906974]
[1750976929874,24.97858977,140.12,140.06,5.98906974]
[1750976931001,24.97858977,140.12,140.07,5.98906974]
[1750976932081,24.97858977,140.12,140.05,1.6726]
[1750976932082,24.97858977,140.12,140.06,5.98906974]
[1750976938405,18.933972,140.11,140.05,1.6726]
[1750976939189,7.13775874,140.1,140.05,7.66166974]
[1750976939490,7.13775874,140.1,140.06,5.98906974]
[1750976940206,7.13775874,140.1,140.07,5.98906974]
[1750976940795,7.13775874,140.1,140.06,5.98906974]
[1750976941108,24.97858977,140.12,140.06,5.98906974]
[1750976943898,7.13673993,140.12,140.07,5.98906974]
[1750976947795,7.13673993,140.12,140.05,7.66166974]
[1750976948792,17.84184984,140.12,140.05,7.66166974]
[1750976949422,18.933972,140.11,140.05,1.6726]
[1750976949601,18.933972,140.11,140.05,7.66166974]
[1750976950768,7.13775874,140.1,140.06,5.98906974]
[1750976951205,7.13775874,140.1,140.05,7.66166974]
[1750976952612,7.13775874,140.1,140.05,7.66166974]
[1750976954730,7.13775874,140.1,140.05,1.6726]
[1750976955050,7.13775874,140.1,140.05,7.66166974]
[1750976955544,7.13775874,140.1,140.06,5.98906974]
[1750976957827,7.13775874,140.1,140.05,7.66166974]
[1750976958222,12.47124493,140.1,140.05,7.66166974]
[1750976958623,12.47124493,140.1,140.05,1.6726]
[1750976958819,24.27218289,140.09,140.05,0.02]
[1750976959035,5.33821089,140.08,140.05,0.02]
[1750976959247,5.33821089,140.09,140.06,5.98906974]
[1750976959445,12.47617335,140.1,140.06,5.98906974]
[1750976960527,12.47617335,140.1,140.05,6.00906974]
[1750976965442,12.47617335,140.1,140.05,0.02]
[1750976966142,7.13796246,140.1,140.05,0.02]
[1750976966753,5.34000017,140.09,140.05,0.02]
[1750976967953,7.13697869,140.12,140.06,5.98906974]
[1750976968259,5.34046843,140.11,140.06,5.98906974]
[1750976968467,5.34046843,140.1,140.06,5.98906974]
[1750976968645,7.13697869,140.12,140.06,5.98906974]
[1750976968847,5.34021084,140.11,140.06,5.98906974]
[1750976969155,5.34021084,140.1,140.06,5.98906974]
[1750976969345,7.13697869,140.12,140.06,5.98906974]
[1750976969533,5.34021118,140.11,140.06,5.98906974]
[1750976969734,5.34021118,140.1,140.06,5.98906974]
[1750976969933,7.13697869,140.12,140.06,5.98906974]
[1750976970162,5.34020447,140.11,140.06,5.98906974]
[1750976970365,5.34020447,140.1,140.06,5.98906974]
[1750976970567,7.13697869,140.12,140.06,5.98906974]
[1750976970743,5.33993173,140.11,140.06,5.98906974]
[1750976970942,5.33993173,140.1,140.05,0.02]
[1750976971143,5.33957549,140.09,140.05,0.02]
[1750976971440,5.33957549,140.1,140.05,0.02]
[1750976971640,5.33957549,140.09,140.05,0.02]
[1750976971840,5.33957549,140.1,140.05,0.02]
[1750976972147,7.13800681,140.1,140.05,0.02]
[1750976973248,5.33994999,140.09,140.05,0.02]
[1750976973453,5.33994999,140.08,140.05,0.02]
[1750976973754,5.33994999,140.07,140.05,0.02]
[1750976973943,0.28432314,140.07,140.05,0.02]
[1750976974965,18.64964886,140.08,140.05,0.02]
[1750976975337,12.47472779,140.07,140.05,0.02]
[1750976978260,7.13928749,140.07,140.05,0.02]
[1750976978848,12.47472779,140.07,140.05,0.02]
[1750976979165,7.13928749,140.07,140.05,0.02]
[1750976980978,18.933972,140.06,140.05,0.02]
[1750976981157,19.07613357,140.06,140.05,0.02]
[1750976982360,26.21593079,140.06,140.05,0.02]
[1750976983274,7.13979722,140.06,140.05,0.02]
[1750976991981,7.13952469,140.07,140.05,0.02]
[1750977002671,31.39928857,140.08,140.05,0.02]
[1750977003694,49.24623317,140.08,140.05,0.02]
[1750977003988,0.14216157,140.07,140.05,0.02]
[1750977005394,26.07376922,140.06,140.05,0.02]
[1750977008696,26.21593079,140.06,140.05,0.02]
[1750977009197,44.06542386,140.06,140.02,0.02]
[1750977009370,53.92352933,140.05,140.02,0.02]
[1750977009570,18.933972,140.03,140.02,0.02]
[1750977009799,18.933972,140.05,140.02,0.02]
[1750977009968,24.26028271,140.05,140.02,0.02]
[1750977010370,0.14216157,140.04,140.02,0.02]
[1750977010823,7.42564999,140.03,140.02,0.02]
[1750977012089,31.54377113,140.03,140.02,0.02]
[1750977017880,19.07613357,140.02,140.0,0.02]
[1750977018084,53.92244428,140.02,140.0,0.02]
[1750977018273,5.32631071,140.01,140.0,0.02]
[1750977019504,24.99464399,140.03,140.0,0.02]
[1750977019676,7.14132685,140.03,140.0,0.02]
[1750977022984,7.14050895,140.05,140.01,6.00902332]
[1750977023179,7.1400311,140.06,140.02,7.52512332]
[1750977023588,7.1400311,140.06,140.02,1.5161]
[1750977023797,7.1400311,140.06,140.02,7.52512332]